bitfinex-derivatives/quotes_ETHF0:USTF0_20250803
["timestamp","ask_amount","ask_price","bid_price","bid_amount"]
[1754182505131,6.5881,3406.9,3406.8,3.5635]
[1754182505833,6.5881,3406.9,3406.8,4.6544]
[1754182506225,6.5881,3406.7,3406.6,3.2078]
[1754182506941,6.5881,3405.9,3405.8,3.2078]
[1754182507128,6.5881,3405.9,3405.8,6.1841]
[1754182508337,6.5881,3405.9,3405.8,8.0324]
[1754182509625,3.5033,3406.3,3406.2,1.94571]
[1754182509936,6.5881,3406.3,3406.2,2.9763]
[1754182511438,6.5881,3406.3,3406.2,4.0672]
[1754182511737,6.5881,3406.3,3406.2,4.8246]
[1754182512042,1.9128,3406.4,3406.3,4.1912]
[1754182512242,6.5881,3406.4,3406.3,0.9845]
[1754182512540,6.5881,3406.4,3406.3,1.6179]
[1754182513836,1.49,3406.8,3406.4,0.58727]
[1754182514036,6.5881,3406.7,3406.6,2.9763]
[1754182514333,5.0981,3406.7,3406.6,5.7254]
[1754182514736,2.5857,3407.0,3406.9,2.7088]
[1754182514936,2.5857,3407.0,3406.9,5.7254]
[1754182515138,0.58704,3407.8,3407.3,0.5871]
[1754182515139,3.5076,3407.6,3407.3,0.5871]
[1754182515337,6.5881,3407.4,3407.1,0.9008]
[1754182515642,6.5881,3407.3,3407.2,2.20503]
[1754182515835,3.9961,3407.3,3407.2,4.65433]
[1754182516043,6.5881,3407.3,3407.2,6.31253]
[1754182517047,6.5881,3407.3,3407.2,4.8246]
[1754182518132,6.5881,3407.3,3407.2,4.0672]
[1754182518333,6.5881,3407.3,3407.2,2.9763]
[1754182519244,6.5881,3407.3,3407.2,4.0672]
[1754182519736,6.5881,3407.3,3407.2,2.9763]
[1754182520045,1.6011,3407.0,3406.9,5.9569]
[1754182520244,6.5881,3407.0,3406.9,7.5748]
[1754182520638,6.5881,3407.0,3406.9,8.9332]
[1754182520837,5.0981,3407.0,3406.9,8.9332]
[1754182521039,5.0981,3407.0,3406.9,9.52038]
[1754182522738,2.5061,3407.0,3406.9,9.52038]
[1754182523042,6.5881,3407.3,3407.2,1.22054]
[1754182523232,6.5881,3407.3,3407.2,4.8246]
[1754182523739,6.5881,3407.3,3407.2,4.0672]
[1754182524945,6.5881,3407.3,3407.2,4.8246]
[1754182525148,3.1916,3407.3,3407.2,4.8246]
[1754182525334,3.1916,3407.3,3407.2,5.7254]
[1754182525738,4.1868,3407.3,3407.2,5.7254]
[1754182525939,5.0981,3407.3,3407.2,5.7254]
[1754182526546,2.5124,3408.1,3408.0,3.2958]
[1754182526743,6.5881,3408.1,3408.0,4.0532]
[1754182527047,6.5881,3408.1,3408.0,4.954]
[1754182527249,6.5881,3408.1,3408.0,6.3124]
[1754182531554,6.5881,3408.1,3408.0,9.5202]
[1754182531749,1.0,3409.0,3408.9,6.4638]
[1754182531950,4.26683709,3409.0,3408.7,3.2078]
[1754182532152,3.5124,3409.0,3408.1,3.2078]
[1754182532346,2.5124,3408.2,3408.1,4.46408]
[1754182532542,2.5124,3408.2,3408.1,7.05078]
[1754182533150,2.5124,3408.2,3408.1,10.25858]
[1754182533850,4.0809,3408.2,3408.1,10.25858]
[1754182534058,5.2986,3408.5,3408.4,3.13922]
[1754182534255,5.2986,3408.5,3408.4,7.02422]
[1754182534545,4.2138,3408.8,3408.7,1.48448]
[1754182534745,4.2138,3408.8,3408.7,7.02418]
[1754182535259,1.0,3409.0,3408.9,3.13914]
[1754182535554,1.0,3409.0,3408.9,10.23194]
[1754182536444,5.3811,3409.0,3408.9,10.23194]
[1754182537246,1.0,3409.0,3408.9,10.23194]
[1754182538746,2.077,3409.0,3408.9,10.23194]
[1754182539155,1.0,3409.0,3408.9,10.23194]
[1754182540749,0.21703339,3409.2,3409.1,6.11481]
[1754182540958,3.39e-06,3409.2,3409.1,7.02411]
[1754182545153,4.3811,3410.0,3409.9,7.02397]
[1754182546252,1.077,3410.2,3410.1,6.38134]
[1754182546548,1.077,3410.2,3410.1,7.02394]
[1754182546953,3.2963,3410.2,3410.1,7.02394]
[1754182547856,1.7278,3410.2,3410.1,7.02394]
[1754182548049,3.7301,3410.5,3410.4,5.42259]
[1754182548366,6.2384,3410.5,3410.4,4.04819]
[1754182549059,6.2384,3410.5,3410.4,3.4616]
[1754182549257,6.2384,3410.5,3410.4,0.9093]
[1754182549755,6.2384,3410.5,3410.4,1.5519]
[1754182549958,2.6453,3410.3,3410.2,2.4495]
[1754182550153,6.2384,3410.3,3410.2,2.4495]
[1754182550353,3.5851,3410.1,3410.0,3.2078]
[1754182550553,2.6453,3409.8,3409.6,4.70382]
[1754182550854,6.2384,3409.7,3409.6,4.70382]
[1754182551059,6.2384,3409.7,3409.6,6.24402]
[1754182551355,6.2384,3409.7,3409.6,8.63052]
[1754182551751,3.5931,3410.4,3409.6,3.2078]
[1754182551955,1.7278,3409.8,3409.7,7.02401]
[1754182552162,5.2986,3409.8,3409.7,7.02401]
[1754182552664,3.7295,3410.1,3410.0,3.13896]
[1754182552852,5.298,3410.1,3410.0,5.42266]
[1754182553047,3.2963,3410.1,3410.0,4.74026]
[1754182553254,6.2378,3410.1,3410.0,3.03616]
[1754182553851,6.2378,3410.1,3410.0,7.02396]
[1754182554050,5.73561461,3410.1,3409.2,3.2078]
[1754182554347,6.2378,3409.3,3409.2,3.2078]
[1754182554662,6.8246,3409.3,3408.9,1.6013]
[1754182554961,3.2078,3409.7,3408.9,1.6013]
[1754182554962,4.3805,3409.0,3408.9,6.4373]
[1754182555155,5.298,3409.0,3408.9,6.4373]
[1754182556756,5.298,3409.2,3409.1,6.4373]
[1754182557658,1.7278,3409.2,3409.1,9.6451]
[1754182558256,3.2963,3409.2,3409.1,9.6451]
[1754182558456,5.298,3409.2,3409.1,9.6451]
[1754182559764,1.077,3409.2,3409.1,9.6451]
[1754182560460,1.7278,3409.2,3409.1,9.6451]
[1754182560657,5.298,3409.2,3409.1,9.6451]
[1754182560865,6.2378,3409.2,3409.1,3.2078]
[1754182562966,5.298,3409.2,3409.1,5.7601]
[1754182563177,4.2138,3409.2,3409.1,9.6451]
[1754182563465,6.2378,3409.2,3409.1,3.2078]
[1754182564763,6.2378,3409.2,3409.1,4.1484]
[1754182565161,6.2378,3409.2,3409.1,5.6773]
[1754182565664,6.2378,3409.2,3409.1,4.1484]
[1754182565863,3.5246,3409.1,3408.9,0.9406]
[1754182566064,4.5244,3409.0,3408.9,0.9406]
[1754182566368,3.2078,3409.7,3408.7,5.39597]
[1754182566369,5.1418,3408.8,3408.7,8.45962401]
[1754182566574,1.6226,3408.8,3408.7,12.07989401]
[1754182566771,5.1418,3408.8,3408.7,12.07989401]
[1754182566968,5.1418,3408.8,3408.7,11.49302401]
[1754182567170,5.1418,3408.8,3408.7,12.43362401]
[1754182567366,5.1418,3408.8,3408.7,9.8055]
[1754182567569,6.0534,3408.8,3408.7,3.2078]
[1754182569569,6.0534,3408.8,3408.4,0.9406]
[1754182569873,2.5288,3408.6,3408.5,4.037]
[1754182570075,6.0534,3408.6,3408.5,4.037]
[1754182570462,3.2078,3409.3,3408.5,4.037]
[1754182570463,3.5246,3409.2,3408.5,5.6571]
[1754182570672,5.1418,3408.9,3408.8,6.5977]
[1754182570971,5.1418,3408.9,3408.8,4.9776]
[1754182570972,6.0534,3408.9,3408.8,4.9776]
[1754182571564,1.529,3408.7,3408.2,3.2078]
[1754182571768,2.5288,3407.9,3407.8,8.8649]
[1754182571970,5.1418,3407.9,3407.8,8.8649]
[1754182572467,6.0534,3407.9,3407.8,3.2078]
[1754182573260,6.0534,3407.9,3407.6,3.56872401]
[1754182573261,1.6226,3407.4,3407.3,3.2078]
[1754182573466,6.0534,3407.4,3407.3,3.2078]
[1754182573876,6.0534,3407.4,3407.3,5.7012]
[1754182574472,6.0534,3407.4,3407.3,8.1854]
[1754182574675,5.1418,3407.4,3407.3,9.8055]
[1754182575181,1.0251,3407.4,3407.3,9.8055]
[1754182576677,5.1418,3407.4,3407.3,9.8055]
[1754182577671,0.9116,3408.1,3407.4,3.974]
[1754182577879,5.1418,3408.1,3408.0,6.5977]
[1754182578083,6.0534,3408.1,3408.0,6.5977]
[1754182578380,5.1418,3407.7,3407.6,6.5977]
[1754182579472,3.2078,3408.4,3407.5,3.79488]
[1754182579473,4.1167,3408.3,3408.2,6.5977]
[1754182579779,5.1418,3408.3,3408.2,6.5977]
[1754182580076,5.8208,3408.9,3408.2,6.5977]
[1754182580275,5.1418,3408.9,3408.8,5.0258]
[1754182580471,1.529,3409.3,3409.2,0.58678]
[1754182580676,3.1516,3409.3,3409.2,7.18448]
[1754182580977,3.1516,3409.3,3408.8,0.58685]
[1754182580978,4.0578,3409.3,3408.8,0.58685]
[1754182581168,5.1418,3409.0,3408.9,2.4934]
[1754182581372,6.0534,3409.0,3408.9,2.4934]
[1754182581573,5.1418,3409.0,3408.9,7.18454]
[1754182583682,3.1516,3409.0,3408.9,7.18454]
[1754182584586,5.1418,3409.3,3409.2,7.18449]
[1754182586985,1.6226,3409.3,3409.2,7.18449]
[1754182587186,1.0251,3409.3,3409.2,7.18449]
[1754182587679,2.5877,3409.8,3409.7,1.5528]
[1754182587882,5.1418,3409.8,3409.7,6.5977]
[1754182589687,4.2356,3409.9,3409.8,6.5977]
[1754182589888,5.1418,3409.9,3409.8,6.5977]
[1754182591485,6.0534,3409.9,3409.8,6.5977]
[1754182592986,24.9198,3410.0,3409.8,2.15859]
[1754182592987,3.2078,3410.0,3409.8,2.15859]
[1754182593184,6.3594,3410.0,3409.9,6.5977]
[1754182594492,4.8304,3410.0,3409.9,6.5977]
[1754182595190,6.3324,3410.0,3409.9,6.5977]
[1754182595391,7.4132,3410.0,3409.9,6.5977]
[1754182595594,8.4064,3410.0,3409.9,6.5977]
[1754182596686,5.1986,3410.0,3409.9,6.5977]
[1754182597783,2.6646,3409.5,3409.4,0.9123]
[1754182597984,2.6646,3409.5,3409.1,4.1201]
[1754182598289,4.2542,3409.4,3409.3,3.24287]
[1754182598490,5.2474,3409.3,3409.2,1.8683]
[1754182598690,5.2474,3409.3,3409.2,6.6165]
[1754182598888,4.1666,3408.8,3408.7,3.2078]
[1754182599094,6.2152,3408.8,3408.7,3.2078]
[1754182599393,6.2152,3408.5,3408.4,2.5086]
[1754182601192,6.2152,3408.4,3408.3,3.2078]
[1754182602089,6.2152,3408.4,3408.3,4.1201]
[1754182602487,4.1666,3408.4,3408.3,9.8243]
[1754182604394,5.2474,3408.4,3408.3,9.8243]
[1754182604899,1.0808,3409.1,3408.8,3.24296]
[1754182605085,0.6327,3409.3,3409.2,5.18749]
[1754182605284,0.6327,3409.3,3409.2,7.20329]
[1754182605682,3.5339,3409.6,3409.5,2.18304]
[1754182605897,5.2474,3409.6,3409.5,7.20324]
[1754182606793,3.1734,3409.6,3409.5,7.20324]
[1754182606994,2.7522,3409.9,3409.8,2.28679]
[1754182607298,1.0387,3409.9,3409.8,7.20319]
[1754182608000,0.15427638,3410.7,3410.3,0.58659]
[1754182608001,0.6327,3410.4,3410.3,0.58659]
[1754182608193,24.3667,3410.4,3410.3,2.6561]
[1754182608501,5.2474,3410.4,3410.3,6.6165]
[1754182608890,0.9678,3410.7,3410.6,1.5963]
[1754182608891,5.2474,3410.7,3410.6,1.5963]
[1754182609099,2.6646,3410.1,3409.9,3.2078]
[1754182609301,2.6646,3409.6,3409.5,4.1201]
[1754182609510,6.2152,3409.6,3409.5,3.2078]
[1754182611086,3.5506,3409.5,3409.1,0.9123]
[1754182611391,6.2152,3409.2,3409.1,2.5086]
[1754182611795,6.2152,3409.2,3409.1,5.0175]
[1754182611994,3.7454,3409.6,3409.5,2.6561]
[1754182612295,5.2474,3409.6,3409.5,5.0175]
[1754182612498,22.6827,3409.6,3409.5,7.20324]
[1754182612698,21.644,3409.6,3409.5,6.6165]
[1754182612893,25.3894,3409.6,3409.5,6.6165]
[1754182613094,26.8914,3409.6,3409.5,6.6165]
[1754182614006,5.2474,3409.2,3409.1,10.4111]
[1754182614704,5.2474,3409.2,3409.1,9.8243]
[1754182615103,5.2474,3409.2,3409.1,6.6165]
[1754182615603,5.2474,3409.2,3408.7,3.79466]
[1754182615798,5.2474,3408.9,3408.8,3.9577]
[1754182616103,6.2152,3408.9,3408.8,3.9577]
[1754182616996,6.2152,3408.9,3408.8,6.6165]
[1754182617198,5.2474,3408.9,3408.8,6.6165]
[1754182617494,5.2474,3409.4,3409.3,1.5963]
[1754182617802,26.8764,3409.4,3409.3,3.9577]
[1754182618001,26.8764,3409.4,3409.3,5.0175]
[1754182618402,27.8442,3409.4,3409.3,5.0175]
[1754182618899,4.1666,3409.4,3409.3,6.6165]
[1754182619100,2.5828,3409.7,3409.3,6.6165]
[1754182619312,25.3704,3409.7,3409.6,6.6165]
[1754182619803,26.8724,3409.7,3409.6,6.6165]
[1754182620110,27.8402,3409.7,3409.6,5.0175]
[1754182620303,3.16955,3409.4,3409.1,3.2078]
[1754182620511,6.2152,3409.2,3409.1,3.2078]
[1754182620810,27.8352,3409.2,3409.1,5.7164]
[1754182621011,6.2152,3409.2,3409.1,5.7164]
[1754182621308,27.8342,3409.2,3409.1,5.7164]
[1754182621512,27.8322,3409.2,3409.1,5.7164]
[1754182622005,25.7846,3409.2,3409.1,9.8243]
[1754182622203,26.8654,3409.2,3409.1,9.8243]
[1754182622905,3.7454,3409.5,3409.4,2.6561]
[1754182623108,25.3614,3409.5,3409.4,6.6165]
[1754182623307,3.7454,3409.5,3409.4,6.6165]
[1754182623607,1.0837,3409.7,3409.4,7.20324]
[1754182623820,1.7091,3409.8,3409.7,3.5819]
[1754182624009,23.1424,3409.9,3409.8,0.9668]
[1754182624311,24.2261,3409.9,3409.8,3.8492]
[1754182626402,24.2181,3409.9,3409.8,3.8492]
[1754182626812,26.8359,3409.9,3409.8,6.4643]
[1754182627814,24.2868,3409.9,3409.8,6.4643]
[1754182628011,25.3045,3409.9,3409.8,6.4643]
[1754182628212,26.8359,3409.9,3409.8,6.4643]
[1754182629097,5.2329,3409.9,3409.8,6.4643]
[1754182629299,22.6097,3409.9,3409.8,6.4643]
[1754182629607,24.1411,3409.9,3409.8,6.4643]
[1754182630110,25.8502,3409.9,3409.8,6.4643]
[1754182630310,4.2582,3409.9,3409.8,6.4643]
[1754182630603,25.8472,3409.9,3409.8,6.4643]
[1754182630805,3.1745,3409.9,3409.8,6.4643]
[1754182631009,22.6067,3409.9,3409.8,6.4643]
[1754182631409,27.7173,3409.9,3409.8,3.9481]
[1754182631710,26.8219,3409.9,3409.8,6.4643]
[1754182632110,25.7382,3409.9,3409.8,6.4643]
[1754182632700,2.6151,3410.2,3409.8,6.4643]
[1754182633012,5.2329,3410.2,3410.1,6.4643]
[1754182633213,26.8139,3410.2,3410.1,6.4643]
[1754182633511,5.2329,3410.2,3410.1,6.4643]
[1754182633711,21.578,3410.2,3409.7,0.9668]
[1754182633921,2.6178,3410.1,3410.0,1.6071]
[1754182634112,4.1492,3410.1,3410.0,4.9561]
[1754182634415,3.1745,3410.1,3410.0,6.4643]
[1754182634714,1.6431,3410.1,3410.0,6.4643]
[1754182634909,5.2329,3410.4,3410.3,6.4643]
[1754182635108,4.2255,3410.6,3410.5,2.6151]
[1754182635307,30.0137,3410.6,3410.5,2.5739]
[1754182635517,30.0137,3410.6,3410.5,4.9561]
[1754182635909,30.9091,3410.6,3410.5,6.4643]
[1754182636210,24.7808,3410.6,3410.5,6.4643]
[1754182636410,27.9553,3410.6,3410.5,6.4643]
[1754182636909,29.039,3410.6,3410.5,6.4643]
[1754182637213,30.0137,3410.6,3410.5,6.4643]
[1754182637512,3.2078,3410.6,3410.5,6.4643]
[1754182637714,1.5314,3411.5,3410.8,0.5865]
[1754182637916,5.2329,3411.5,3411.4,6.4643]
[1754182638114,5.98838698,3411.5,3411.4,6.4643]
[1754182638614,26.46668698,3411.5,3411.4,6.4643]
[1754182639009,26.46368698,3411.5,3411.4,6.4643]
[1754182639205,22.31448698,3411.5,3411.4,6.4643]
[1754182640111,21.559,3411.7,3411.4,3.9893]
[1754182640315,3.1745,3411.6,3411.5,2.6151]
[1754182640613,3.7015,3411.1,3411.0,2.6151]
[1754182640914,1.0177,3411.1,3411.0,9.6721]
[1754182641512,1.0177,3411.1,3409.7,2.62812401]
[1754182641513,3.20426,3411.1,3410.5,3.2078]
[1754182641822,6.1283,3410.7,3410.6,2.5739]
[1754182642407,6.1283,3410.7,3410.6,1.5856]
[1754182642605,6.1283,3410.7,3410.6,0.9668]
[1754182643023,6.1283,3410.7,3410.6,1.5856]
[1754182643222,6.1283,3410.7,3410.6,2.5739]
[1754182643415,6.1283,3410.7,3410.6,4.9561]
[1754182644306,6.1283,3410.7,3410.4,3.2078]
[1754182644505,21.547,3410.8,3410.0,6.4643]
[1754182644506,5.2329,3410.1,3410.0,6.4643]
[1754182644715,1.0177,3410.1,3410.0,6.4643]
[1754182645414,24.1541,3410.4,3410.0,2.6151]
[1754182645615,4.2582,3410.4,3410.3,6.4643]
[1754182645917,24.7125,3410.4,3410.3,6.4643]
[1754182646711,23.1811,3410.4,3410.3,6.4643]
[1754182646912,1.6431,3410.4,3410.3,6.4643]
[1754182647108,4.8509,3410.8,3410.7,3.9893]
[1754182647313,29.9727,3410.8,3410.7,6.4643]
[1754182647805,29.9727,3410.8,3410.7,4.9561]
[1754182648816,29.9727,3410.8,3410.7,6.4643]
[1754182649617,24.7318,3410.8,3410.7,6.4643]
[1754182649816,27.9063,3410.8,3410.7,6.4643]
[1754182650319,30.8601,3410.8,3410.7,3.5819]
[1754182650521,30.8601,3410.8,3410.7,2.5739]
[1754182652224,30.8601,3410.8,3410.2,5.4975]
[1754182652225,5.2329,3410.3,3410.2,5.4975]
[1754182652411,6.1283,3410.2,3410.1,1.6071]
[1754182652615,5.2329,3410.2,3410.1,5.4975]
[1754182652919,4.1492,3410.2,3410.1,6.4643]
[1754182653317,2.6151,3410.5,3410.2,3.20172]
[1754182653623,5.2329,3410.5,3410.4,6.4643]
[1754182653820,28.31898,3410.5,3410.1,3.9709]
[1754182654014,2.6024,3410.2,3410.1,6.5654]
[1754182654215,2.6024,3410.2,3410.1,3.5702]
[1754182654216,27.7513,3410.2,3410.1,3.5702]
[1754182654422,3.5899,3410.0,3409.9,0.9757]
[1754182654723,6.2403,3410.0,3409.9,0.9757]
[1754182655613,6.2403,3410.0,3409.9,5.0442]
[1754182655814,6.2403,3410.0,3409.9,6.5654]
[1754182656214,6.2403,3410.0,3409.9,5.0442]
[1754182656416,6.2403,3410.0,3409.9,3.5702]
[1754182656616,0.6271,3410.0,3409.5,3.2078]
[1754182656823,2.6024,3409.2,3409.0,3.2078]
[1754182657015,0.58673,3409.6,3409.0,3.2078]
[1754182657016,6.2403,3409.1,3409.0,3.2078]
[1754182657319,5.2528,3409.1,3409.0,9.7732]
[1754182657627,4.1719,3409.1,3409.0,9.7732]
[1754182658024,5.2528,3409.1,3409.0,9.7732]
[1754182658219,4.1719,3409.1,3409.0,9.7732]
[1754182658426,1.0437,3409.1,3409.0,9.7732]
[1754182659521,21.499,3409.5,3409.0,3.2078]
[1754182659821,3.5899,3409.0,3408.9,1.5868]
[1754182660022,3.5899,3409.0,3408.9,2.5625]
[1754182660324,3.2078,3409.4,3408.9,2.5625]
[1754182660325,1.0809,3409.4,3408.9,3.18133]
[1754182660530,21.494,3409.5,3409.4,3.5702]
[1754182660928,22.5377,3409.5,3409.4,3.5702]
[1754182661230,25.8152,3409.5,3409.4,6.5654]
[1754182661430,26.7468,3409.5,3409.4,6.5654]
[1754182661724,5.2528,3409.5,3409.4,6.5654]
[1754182662026,21.492,3409.7,3409.4,2.5945]
[1754182662326,24.7323,3409.7,3409.6,6.5654]
[1754182662530,4.3212,3409.7,3409.6,6.5654]
[1754182662835,25.8112,3409.7,3409.6,6.5654]
[1754182663034,26.7418,3409.7,3409.6,6.5654]
[1754182663431,5.2528,3409.7,3409.6,6.5654]
[1754182663625,26.7398,3409.7,3409.6,6.5654]
[1754182664028,44.8894,3410.1,3410.0,2.5945]
[1754182664229,25.8062,3410.1,3410.0,5.0914]
[1754182664431,25.8062,3410.1,3410.0,6.5654]
[1754182664731,26.7378,3410.1,3410.0,6.5654]
[1754182665324,5.2528,3410.1,3410.0,6.5654]
[1754182665933,5.2528,3410.1,3410.0,7.15205]
[1754182666134,5.2528,3410.1,3410.0,6.5654]
[1754182667331,26.7318,3410.1,3410.0,6.5654]
[1754182668027,2.7517,3409.7,3409.6,2.5945]
[1754182668222,2.6024,3409.4,3409.3,2.17356]
[1754182668424,0.6271,3409.8,3409.7,0.6224]
[1754182668729,23.1428,3409.8,3409.7,5.0442]
[1754182668927,1.6708,3409.9,3409.8,4.15689]
[1754182669132,4.3212,3409.9,3409.8,4.15689]
[1754182669528,3.2403,3409.9,3409.8,7.15209]
[1754182669832,5.2528,3410.2,3410.1,3.18113]
[1754182670027,5.2528,3410.2,3410.1,6.5654]
[1754182670437,5.2528,3410.2,3410.1,9.7732]
[1754182670637,5.2528,3410.2,3410.1,6.5654]
[1754182671933,2.6024,3410.2,3409.8,1.5212]
[1754182672133,2.6024,3409.9,3409.8,1.5868]
[1754182672333,6.2403,3409.9,3409.8,2.5625]
[1754182672532,6.2403,3409.9,3409.8,3.5702]
[1754182672732,6.2403,3409.9,3409.8,6.5654]
[1754182673142,5.2528,3409.9,3409.8,6.5654]
[1754182676032,2.5462,3410.3,3410.2,1.5868]
[1754182676340,27.6923,3410.3,3410.2,1.5868]
[1754182676940,25.0419,3410.3,3410.0,3.9709]
[1754182677147,6.2403,3410.2,3410.1,0.9757]
[1754182677338,6.2403,3410.2,3410.1,1.5981]
[1754182677537,27.6893,3410.2,3410.1,1.5981]
[1754182677732,27.6893,3410.2,3410.1,2.5625]
[1754182677941,27.6893,3410.2,3410.1,3.5702]
[1754182678145,27.6893,3410.2,3410.1,5.0442]
[1754182680245,27.6893,3410.2,3410.1,6.5654]
[1754182680650,6.2403,3410.2,3410.1,6.5654]
[1754182680944,27.6773,3410.2,3410.1,6.5654]
[1754182681639,25.7552,3410.2,3410.1,6.5654]
[1754182681947,26.6868,3410.2,3410.1,6.5654]
[1754182682846,5.2528,3410.2,3410.1,6.5654]
[1754182683050,26.6858,3410.2,3410.1,6.5654]
[1754182683746,3.6331,3409.8,3409.7,4.9925]
[1754182684057,6.2566,3409.7,3409.6,0.9876]
[1754182684351,6.2566,3409.7,3409.6,4.9925]
[1754182684548,6.2566,3409.7,3409.6,6.5064]
[1754182685150,6.2566,3409.7,3409.2,3.2078]
[1754182685151,1.5416,3409.8,3409.2,3.2078]
[1754182685354,5.2782,3409.3,3409.2,9.7142]
[1754182685547,27.6796,3409.3,3409.2,5.7655]
[1754182685751,27.6796,3409.3,3409.2,8.2003]
[1754182686255,3.6019,3409.2,3409.0,2.331]
[1754182686441,1.6708,3408.6,3408.5,2.6615]
[1754182686642,3.7366,3408.6,3408.5,2.6615]
[1754182687254,2.6235,3408.5,3408.1,1.3434]
[1754182687448,3.0001,3408.1,3408.0,3.2078]
[1754182687650,6.2566,3408.1,3408.0,4.1954]
[1754182688156,4.2349,3408.0,3407.9,0.9876]
[1754182688356,6.2566,3408.0,3407.9,0.9876]
[1754182688860,5.2782,3407.9,3407.8,6.5064]
[1754182689549,6.2566,3407.9,3407.8,4.9925]
[1754182690255,1.5416,3407.7,3406.8,3.2078]
[1754182690449,1.6708,3407.5,3407.4,2.309]
[1754182690756,4.1333,3408.1,3408.0,2.6615]
[1754182690946,25.5443,3408.1,3408.0,3.6491]
[1754182691151,1.4786,3408.0,3407.6,4.7217]
[1754182691454,21.41,3408.2,3408.0,1.5139]
[1754182691656,25.5433,3408.2,3408.1,4.1754]
[1754182691849,27.0849,3408.2,3408.1,4.1754]
[1754182692051,5.6749,3408.2,3408.1,5.163]
[1754182692254,27.0859,3408.2,3408.1,6.5064]
[1754182692450,25.5443,3408.2,3408.1,6.5064]
[1754182692654,24.0657,3408.2,3408.1,6.5064]
[1754182692861,27.0859,3408.2,3408.1,6.5064]
[1754182693155,27.0859,3408.2,3408.1,3.9011]
[1754182693349,5.6749,3408.0,3407.9,5.163]
[1754182693556,5.6749,3408.0,3407.9,3.6491]
[1754182693753,5.6749,3408.0,3407.9,6.5064]
[1754182694446,6.6533,3408.0,3407.9,6.5064]
[1754182695246,5.6749,3408.0,3407.9,6.5064]
[1754182695449,0.9839,3408.0,3407.9,6.5064]
[1754182695646,43.7896,3408.6,3408.5,2.6615]
[1754182695862,65.1936,3408.6,3408.5,6.5064]
[1754182696059,66.172,3408.6,3408.5,6.5064]
[1754182696251,67.6506,3408.6,3408.5,6.5064]
[1754182696559,67.6506,3408.6,3408.5,5.163]
[1754182697060,46.2466,3408.6,3408.5,5.163]
[1754182697454,67.6466,3408.6,3408.5,1.6181]
[1754182698149,2.1746,3408.2,3408.1,0.6305]
[1754182698356,27.0749,3408.2,3408.1,6.5064]
[1754182698662,5.6749,3407.9,3407.8,5.163]
[1754182698958,28.0493,3407.9,3407.8,5.163]
[1754182699546,27.0689,3407.9,3407.8,5.163]
[1754182699754,27.0679,3407.9,3407.8,6.5064]
[1754182700053,0.9839,3407.9,3407.8,6.5064]
[1754182700260,3.2078,3408.3,3406.2,4.27343054]
[1754182700261,5.6749,3408.3,3408.2,5.5188]
[1754182700460,27.0659,3408.3,3408.2,6.5064]
[1754182700654,0.9784,3408.5,3408.2,6.5064]
[1754182700655,3.79467,3408.7,3408.2,6.5064]
[1754182700859,7.24022,3408.4,3408.3,3.5929]
[1754182701158,4.1333,3408.1,3408.0,2.6615]
[1754182701362,2.0217,3407.9,3407.8,3.5449]
[1754182701660,28.0443,3407.9,3407.8,5.163]
[1754182703159,4.1963,3407.8,3407.7,0.6305]
[1754182703353,5.6749,3407.8,3407.7,5.163]
[1754182703547,5.6749,3407.8,3407.7,6.5064]
[1754182704947,43.7266,3408.6,3407.7,6.45633]
[1754182705150,21.386,3408.5,3407.7,3.24853]
[1754182705352,21.386,3408.5,3407.7,6.45633]
[1754182705554,27.0609,3408.5,3408.4,6.5064]
[1754182706654,28.0393,3408.5,3408.4,6.5064]
[1754182707562,27.0609,3408.5,3408.4,6.5064]
[1754182708461,28.0393,3408.5,3408.4,6.5064]
[1754182708967,28.0273,3408.5,3408.4,6.5064]
[1754182710268,2.60867,3408.2,3408.1,2.6615]
[1754182710565,28.61127,3408.2,3408.1,6.5064]
[1754182710867,27.0459,3408.2,3408.1,6.5064]
[1754182711266,25.5043,3408.2,3408.1,6.5064]
[1754182712273,24.0257,3408.2,3408.1,5.163]
[1754182712459,6.6533,3408.0,3407.9,5.163]
[1754182712661,28.0143,3408.0,3407.9,5.163]
[1754182712868,28.0143,3408.0,3407.9,6.5064]
[1754182713171,27.0359,3408.0,3407.9,6.5064]
[1754182713366,27.0359,3408.0,3407.3,4.5512]
[1754182713367,0.58701,3407.9,3407.3,4.5512]
[1754182713572,1.4786,3407.7,3407.5,0.9876]
[1754182713873,27.8079,3407.6,3407.5,5.1001]
[1754182714075,27.8079,3407.6,3407.5,6.5526]
[1754182714373,26.9001,3407.6,3407.5,6.5526]
[1754182714556,21.358,3407.6,3407.5,2.6024]
[1754182714760,3.9737,3407.6,3407.5,6.4912]
[1754182715064,3.9737,3408.3,3408.2,3.5286]
[1754182715263,26.0822658,3408.3,3408.2,3.5286]
[1754182715464,0.7545658,3408.3,3408.2,3.5286]
[1754182715770,22.10754666,3408.3,3408.2,6.4912]
[1754182715969,4.25859551,3408.8,3408.2,6.4912]
[1754182716164,21.352,3408.7,3408.6,2.6024]
[1754182716470,23.6563,3408.7,3408.6,6.4912]
[1754182716668,2.3043,3408.7,3408.6,6.4912]
[1754182716863,23.6553,3408.7,3408.6,6.4912]
[1754182717065,24.2591,3408.7,3408.6,6.4912]
[1754182717270,25.3247,3408.7,3408.6,6.4912]